bitfinex-derivatives/quotes_SOLF0:USTF0_20250206
["timestamp","ask_amount","ask_price","bid_price","bid_amount"]
[1738807553920,5.0058,199.76,199.74,2.375e-05]
[1738807554119,0.03312459,199.78,199.74,2.375e-05]
[1738807554619,5.006,199.75,199.74,2.375e-05]
[1738807560822,5.0057,199.77,199.74,2.375e-05]
[1738807562222,0.03312459,199.78,199.74,2.375e-05]
[1738807562826,119.82015263,199.87,199.74,5.00622375]
[1738807563027,119.82015263,199.87,199.75,3.1226]
[1738807563325,5.0051,199.79,199.75,3.1226]
[1738807563527,119.82015263,199.87,199.75,3.1226]
[1738807564129,0.03533207,199.83,199.79,0.03483142]
[1738807565032,5.0047,199.8,199.79,0.03483142]
[1738807566327,0.03533207,199.83,199.79,0.03483142]
[1738807567030,5.03933207,199.83,199.79,0.03483142]
[1738807569130,0.03533207,199.83,199.79,0.03483142]
[1738807569335,13.52132807,199.92,199.79,0.03483142]
[1738807569834,5.0033,199.86,199.79,5.0049]
[1738807570436,0.03403757,199.84,199.81,0.03313787]
[1738807570626,5.0033,199.86,199.81,0.03313787]
[1738807571930,13.52132807,199.95,199.81,13.55446594]
[1738807572137,13.52132807,199.98,199.84,13.52132807]
[1738807572335,13.52132807,199.92,199.85,1.5882]
[1738807573036,5.0027,199.88,199.87,0.03569664]
[1738807574040,13.52132807,199.89,199.76,1.5798]
[1738807574232,13.52132807,199.86,199.76,1.5798]
[1738807574430,13.52132807,199.89,199.76,1.5798]
[1738807574637,13.52132807,199.89,199.77,5.0054]
[1738807574838,5.0037,199.84,199.77,5.0054]
[1738807575044,13.52132807,199.89,199.76,6.5855]
[1738807575446,0.03387074,199.82,199.79,0.03526851]
[1738807575744,5.004,199.83,199.79,0.03526851]
[1738807575941,0.03414035,199.82,199.79,0.03526851]
[1738807576137,133.3414807,199.92,199.79,0.03526851]
[1738807576339,119.82015263,199.92,199.81,13.52132807]
[1738807576540,17.24132807,199.98,199.81,13.52132807]
[1738807576741,13.52132807,199.95,199.81,13.52132807]
[1738807577342,0.02984683,199.9,199.86,0.03757251]
[1738807577742,5.03214683,199.9,199.86,0.03757251]
[1738807578645,5.0025,199.89,199.86,0.03757251]
[1738807581242,5.003,199.87,199.86,0.03757251]
[1738807581744,18.52432807,199.87,199.86,7.251e-05]
[1738807582743,18.52432807,199.87,199.77,3.0079]
[1738807583049,13.52132807,199.84,199.72,6.91574911]
[1738807583343,13.52132807,199.84,199.71,3.0945]
[1738807583649,13.52132807,199.81,199.71,3.0945]
[1738807583844,13.52132807,199.81,199.71,1.5075]
[1738807584045,0.03202884,199.78,199.74,0.03254242]
[1738807584941,5.0059,199.76,199.74,0.03254242]
[1738807589750,0.03202884,199.78,199.74,0.03254242]
[1738807590850,5.0057,199.76,199.74,0.03254242]
[1738807591651,0.03202884,199.78,199.74,0.03254242]
[1738807592252,5.03722884,199.78,199.74,0.03254242]
[1738807592551,0.03202884,199.78,199.74,0.03254242]
[1738807594749,5.03742884,199.78,199.74,0.03254242]
[1738807594953,0.03202884,199.78,199.74,0.03254242]
[1738807595252,0.03202884,199.78,199.74,13.55387049]
[1738807596653,0.03202884,199.78,199.74,0.03254242]
[1738807597151,5.006,199.75,199.74,0.03254242]
[1738807599356,5.0056,199.77,199.74,0.03254242]
[1738807600454,0.03202884,199.78,199.74,0.03254242]
[1738807601757,5.0059,199.76,199.74,0.03254242]
[1738807602661,5.006,199.75,199.74,0.03254242]
[1738807603854,5.0057,199.77,199.74,0.03254242]
[1738807604359,0.03202884,199.78,199.74,0.03254242]
[1738807604755,5.03752884,199.78,199.74,0.03254242]
[1738807605462,0.03202884,199.78,199.74,0.03254242]
[1738807605756,5.0055,199.77,199.74,0.03254242]
[1738807606261,0.03202884,199.78,199.74,0.03254242]
[1738807607860,5.03722884,199.78,199.74,0.03254242]
[1738807611166,0.03202884,199.78,199.74,0.03254242]
[1738807612065,5.006,199.76,199.74,0.03254242]
[1738807612665,5.006,199.75,199.74,0.03254242]
[1738807616375,0.03202884,199.78,199.74,0.03254242]
[1738807617375,0.03202884,199.78,199.75,5.0059]
[1738807617570,0.03202884,199.78,199.74,13.55387049]
[1738807617771,5.0038,199.84,199.74,13.55387049]
[1738807617974,54.47281633,199.91,199.77,13.52132807]
[1738807618174,54.47281633,199.91,199.8,13.52132807]
[1738807618378,5.0023,199.9,199.82,5.0041]
[1738807618577,5.0023,199.9,199.8,13.52132807]
[1738807619079,0.03539049,199.87,199.83,0.03310927]
[1738807619878,0.03539049,199.87,199.83,5.03690927]
[1738807620573,80.49502947,199.95,199.83,0.03310927]
[1738807620875,66.9737014,199.95,199.83,13.52132807]
[1738807621082,66.9737014,199.95,199.84,1.5797]
[1738807621483,133.3414807,200.04,199.89,13.52132807]
[1738807621682,4.9991,200.03,199.94,5.0011]
[1738807621880,54.47281633,200.05,199.95,0.03663012]
[1738807622073,13.52132807,200.04,199.95,0.03663012]
[1738807622476,13.52132807,200.01,199.95,0.03663012]
[1738807622690,13.52132807,199.98,199.95,3.012e-05]
[1738807623979,0.03491873,199.98,199.95,3.012e-05]
[1738807624381,5.0005,199.97,199.95,3.012e-05]
[1738807625884,5.0023,199.9,199.83,1.5335]
[1738807626087,13.52132807,199.94,199.83,1.5335]
[1738807626486,5.0024,199.9,199.83,1.5335]
[1738807626786,13.52132807,199.91,199.83,1.5335]
[1738807626991,5.0025,199.89,199.83,1.5335]
[1738807627286,0.03663012,199.88,199.85,0.03247077]
[1738807627883,5.03933012,199.88,199.85,0.03247077]
[1738807628088,0.03663012,199.88,199.85,0.03247077]
[1738807629385,3.72,199.96,199.85,0.03247077]
[1738807630088,5.0017,199.93,199.86,5.0032]
[1738807630384,119.82015263,199.99,199.86,5.0032]
[1738807630579,5.0012,199.95,199.88,0.03791863]
[1738807630987,5.0012,199.95,199.87,5.0029]
[1738807631185,5.0012,199.95,199.9,0.03259879]
[1738807631987,3.72,200.02,199.9,0.03259879]
[1738807632385,3.72,200.02,199.86,21.62293363]
[1738807632582,21.62293363,200.04,199.94,0.03420712]
[1738807632784,21.62293363,200.08,199.94,0.03420712]
[1738807633187,21.62293363,200.08,199.9,21.62293363]
[1738807633388,21.62293363,200.08,199.99,0.03504108]
[1738807633585,141.74538626,200.12,199.99,0.03504108]
[1738807633887,21.92523363,200.12,199.98,5.0001]
[1738807634084,21.92523363,200.12,200.03,0.03668499]
[1738807634692,4.9985,200.05,200.03,0.03668499]
[1738807639293,4.9985,200.05,200.03,8.499e-05]
[1738807640492,4.9987,200.04,200.03,8.499e-05]
[1738807642693,5.0012,199.94,199.91,1.495]
[1738807642890,21.62293363,200.0,199.87,3.0919]
[1738807643298,5.0021,199.91,199.87,3.0919]
[1738807643495,21.62293363,200.0,199.87,3.0919]
[1738807643690,21.62293363,199.96,199.87,3.0919]
[1738807643898,5.0025,199.89,199.87,0.03276848]
[1738807644893,0.03603979,199.91,199.87,0.03276848]
[1738807645090,5.03823979,199.91,199.87,0.03276848]
[1738807645492,0.03603979,199.91,199.87,0.03276848]
[1738807645900,0.03603979,199.91,199.87,5.03556848]
[1738807646297,119.82015263,200.02,199.87,0.03276848]
[1738807646698,5.0012,199.94,199.87,5.0027]
[1738807647194,21.62293363,200.04,199.84,21.62293363]
[1738807647495,21.62293363,200.04,199.89,0.03630623]
[1738807647691,21.62293363,200.04,199.84,21.62293363]
[1738807647895,21.62293363,200.04,199.82,3.0647]
[1738807647896,21.62293363,200.0,199.82,3.0647]
[1738807648301,21.62293363,199.96,199.89,0.03816284]
[1738807648497,5.002,199.91,199.89,0.03816284]
[1738807648692,13.50985921,199.97,199.84,13.50985921]
[1738807648896,13.50985921,199.97,199.88,0.03346169]
[1738807649797,13.50985921,200.0,199.88,0.03346169]
[1738807650100,13.50985921,200.0,199.87,13.50985921]
[1738807650292,5.0013,199.94,199.92,0.03523408]
[1738807651101,5.0009,199.96,199.92,0.03523408]
[1738807651305,13.50985921,200.03,199.92,0.03523408]
[1738807651500,13.50985921,200.03,199.9,5.0022]
[1738807651699,13.50985921,200.03,199.96,0.03806939]
[1738807652304,5.0004,199.97,199.96,0.03806939]
[1738807652603,13.50985921,200.03,199.96,0.03806939]
[1738807652803,5.0004,199.97,199.96,0.03806939]
[1738807653713,5.0001,199.99,199.96,0.03806939]
[1738807654002,13.50985921,200.06,199.96,0.03806939]
[1738807654203,4.9989,200.03,199.93,13.50985921]
[1738807654404,13.50985921,200.09,199.99,0.03639577]
[1738807655903,4.9992,200.02,199.99,0.03639577]
[1738807657106,4.999,200.03,199.99,0.03639577]
[1738807658108,13.50985921,200.09,199.99,0.03639577]
[1738807658405,13.50985921,200.12,199.99,13.54625498]
[1738807658601,13.50985921,200.12,200.0,3.0777]
[1738807658998,13.50985921,200.09,200.04,0.03160861]
[1738807659202,4.9968,200.12,200.04,0.03160861]
[1738807659505,13.50985921,200.18,200.06,0.03436961]
[1738807659708,4.997,200.11,200.06,0.03436961]
[1738807660208,54.47281633,200.2,200.06,0.03436961]
[1738807660507,54.47281633,200.2,200.05,13.50985921]
[1738807660702,54.47281633,200.2,200.11,0.0334369]
[1738807661002,4.996,200.15,200.11,0.0334369]
[1738807661203,54.47281633,200.2,200.11,13.54329611]
[1738807662105,4.9955,200.17,200.11,13.54329611]
[1738807662407,54.47281633,200.2,200.11,13.54329611]
[1738807662710,4.9954,200.18,200.11,0.0334369]
[1738807663417,4.996,200.15,200.11,0.0334369]
[1738807663910,4.996,200.15,200.09,3.0046]
[1738807664212,4.9965,200.13,200.11,0.03765905]
[1738807664603,4.9965,200.13,200.09,3.0046]
[1738807664907,4.9968,200.12,200.1,0.03789263]
[1738807665211,3.74,200.21,200.04,23.09440602]
[1738807665410,4.9954,200.18,200.09,0.03364169]
[1738807665711,21.55700602,200.23,200.09,0.03364169]
[1738807666009,21.55700602,200.23,200.09,3.0518]
[1738807666212,21.55700602,200.23,200.14,0.03733108]
[1738807666516,21.55700602,200.27,200.14,0.03733108]
[1738807666810,4.9949,200.2,200.11,4.9967]
[1738807667011,21.55700602,200.27,200.18,0.03740915]
[1738807667212,4.995,200.19,200.09,8.049]
[1738807667412,21.55700602,200.27,200.2,0.03553404]
[1738807667710,21.55700602,200.27,200.09,3.0518]
[1738807667910,21.55700602,200.27,200.21,0.03749334]
[1738807668100,21.55700602,200.27,200.12,4.9967]
[1738807668305,21.55700602,200.27,200.22,0.03666768]
[1738807668602,21.55700602,200.27,200.1,4.997]
[1738807668804,21.55700602,200.23,200.22,1.185e-05]
[1738807669008,0.0366,200.21,200.09,3.0518]
[1738807669811,4.9959,200.16,200.09,3.0518]
[1738807670011,4.9959,200.16,200.13,0.03693364]
[1738807670211,21.55700602,200.23,200.13,0.03693364]
[1738807670412,0.03270423,200.17,200.13,0.03693364]
[1738807671412,4.9961,200.15,200.13,0.03693364]
[1738807676212,4.998,200.07,200.04,1.5374]
[1738807676611,21.55700602,200.15,200.0,21.55700602]
[1738807676812,4.998,200.07,200.0,21.55700602]
[1738807677417,0.03629588,200.06,200.01,5.03543942]
[1738807677621,0.03629588,200.06,200.01,4.9994]
[1738807677919,0.03629588,200.06,200.01,5.03443146]
[1738807678113,0.03629588,200.06,200.01,0.03503146]
[1738807679010,0.03629588,200.06,200.01,5.03443146]
[1738807679316,0.03629588,200.06,200.02,4.9991]
[1738807679518,0.03629588,200.06,200.01,0.03503146]
[1738807681721,21.55700602,200.19,200.04,21.55700602]
[1738807682122,4.997,200.11,200.04,21.55700602]
[1738807682421,21.55700602,200.19,200.04,21.55700602]
[1738807682614,4.9971,200.11,200.03,18.48281376]
[1738807682922,4.9971,200.11,200.09,0.03509708]
[1738807684421,0.03723776,200.12,200.09,0.03509708]
[1738807686127,4.9972,200.1,200.09,0.03509708]
[1738807686724,0.03723776,200.12,200.09,0.03509708]
[1738807688127,4.997,200.11,200.09,0.03509708]
[1738807688520,0.03723776,200.12,200.09,0.03509708]
[1738807689028,0.1634,200.22,200.09,13.51911084]
[1738807689228,4.9959,200.16,200.09,18.51651084]
[1738807689428,13.48401376,200.2,200.1,1.5618]
[1738807689823,13.48401376,200.2,200.06,13.48401376]
[1738807690326,13.48401376,200.2,200.11,0.03696975]
[1738807690922,13.48401376,200.17,200.11,0.03696975]
[1738807691127,13.48401376,200.17,200.03,13.48401376]
[1738807691326,13.48401376,200.14,200.12,7.614e-05]
[1738807691632,13.48401376,200.14,200.0,15.04581376]
[1738807692237,4.9983,200.06,200.0,20.04541376]
[1738807692435,13.48401376,200.08,199.98,6.91574911]
[1738807692635,4.9987,200.04,200.01,0.03248029]
[1738807692935,0.0364449,200.05,200.01,0.03248029]
[1738807694031,4.9989,200.04,200.01,0.03248029]
[1738807694230,0.0364449,200.05,200.01,0.03248029]
[1738807694631,4.999,200.03,200.01,0.03248029]
[1738807694938,13.52045866,200.05,199.91,15.04961376]
[1738807695135,13.48401376,200.05,199.91,15.04961376]
[1738807695435,5.0005,199.97,199.91,20.05151376]
[1738807695634,5.0005,199.97,199.91,15.04961376]
[1738807696130,5.0005,199.97,199.89,34.17464901]
[1738807696331,0.03490939,199.96,199.92,0.03437548]
[1738807696536,5.03560939,199.96,199.92,0.03437548]
[1738807698234,0.03490939,199.96,199.92,0.03437548]
[1738807698831,5.0013,199.94,199.92,0.03437548]
[1738807699431,5.0029,199.88,199.83,55.01073865]
[1738807700037,5.003,199.87,199.83,55.01073865]
[1738807700231,13.48401376,199.93,199.83,55.01073865]
[1738807700437,0.03340955,199.9,199.87,0.03722221]
[1738807701235,5.0024,199.89,199.87,0.03722221]
[1738807704043,0.03340955,199.9,199.87,0.03722221]
[1738807704837,13.48401376,200.02,199.88,13.48401376]
[1738807705142,13.48401376,200.02,199.88,15.04671376]
[1738807705330,5.0017,199.92,199.88,1.5627]
[1738807706139,0.03186702,199.92,199.88,1.59974629]
[1738807706337,5.002,199.91,199.88,1.59974629]
[1738807707540,5.0022,199.9,199.88,1.59974629]
[1738807707738,0.03186702,199.92,199.88,1.59974629]
[1738807708140,5.03376702,199.92,199.88,1.59974629]
[1738807708438,0.03186702,199.92,199.88,1.59974629]
[1738807709542,0.03186702,199.92,199.88,0.03704629]
[1738807710043,5.0024,199.89,199.88,0.03704629]
[1738807712134,5.0024,199.89,199.88,4.629e-05]
[1738807712439,26.96802752,199.9,199.77,1.5246]
[1738807712741,13.48401376,199.85,199.74,1.577]
[1738807713141,13.48401376,199.82,199.74,1.577]
[1738807713539,0.03802609,199.8,199.76,0.03590113]
[1738807714140,0.03802609,199.8,199.76,13.51991489]
[1738807716047,0.03802609,199.8,199.76,0.03590113]
[1738807716838,0.03802609,199.8,199.76,5.04160113]
[1738807717649,0.03802609,199.8,199.78,5.0052]
[1738807718948,0.03802609,199.8,199.76,13.51991489]
[1738807719445,13.48401376,199.91,199.76,13.51991489]
[1738807719646,13.48401376,199.91,199.79,13.48401376]
[1738807719841,13.48401376,199.91,199.8,1.5855]
[1738807720039,5.0032,199.87,199.8,1.5855]
[1738807720242,13.48401376,199.91,199.8,1.5855]
[1738807720645,0.03370092,199.87,199.84,0.03481796]
[1738807720946,5.0032,199.86,199.84,0.03481796]
[1738807721149,0.03370092,199.87,199.84,0.03481796]
[1738807722150,5.0035,199.85,199.84,0.03481796]
[1738807722555,0.03370092,199.87,199.84,0.03481796]
[1738807725047,5.03670092,199.87,199.84,0.03481796]
[1738807725247,0.03370092,199.87,199.84,0.03481796]
[1738807726652,5.0032,199.86,199.84,0.03481796]
[1738807727658,0.03370092,199.87,199.84,0.03481796]
[1738807729458,0.03370092,199.87,199.84,5.03841796]
[1738807732171,0.03370092,199.87,199.85,5.0034]
[1738807734569,0.03370092,199.87,199.84,5.03841796]
[1738807735263,0.03370092,199.87,199.84,0.03481796]
[1738807736172,5.0032,199.86,199.84,0.03481796]
[1738807737272,5.03670092,199.87,199.84,0.03481796]
[1738807737473,0.03370092,199.87,199.84,0.03481796]
[1738807737664,0.03370092,199.87,199.86,5.0032]
[1738807738870,119.95965263,199.99,199.85,13.48401376]
[1738807739072,13.48401376,200.0,199.88,13.48401376]
[1738807739772,13.48401376,200.03,199.88,13.48401376]
[1738807740072,0.0357655,199.96,199.92,0.03233496]
[1738807740269,13.48401376,199.97,199.86,1.4604]
[1738807740467,0.0357655,199.96,199.92,0.03394181]
[1738807740974,5.0014,199.93,199.92,0.03394181]
[1738807741273,5.0014,199.93,199.92,4.181e-05]
[1738807741876,13.48401376,199.94,199.8,1.4747]
[1738807742077,13.48401376,199.88,199.8,1.4747]
[1738807742266,13.48401376,199.88,199.77,1.537]
[1738807742470,5.0043,199.82,199.77,1.537]
[1738807743273,0.03820914,199.81,199.78,0.03431514]
[1738807743666,13.48401376,199.88,199.78,0.03431514]
[1738807743866,0.03255087,199.81,199.78,0.03431514]
[1738807744067,13.48401376,199.88,199.78,0.03431514]
[1738807744270,0.03307081,199.81,199.78,0.03431514]
[1738807744470,5.0027,199.88,199.79,13.48401376]
[1738807744877,0.03809854,199.85,199.79,13.48401376]
[1738807745376,0.03809854,199.85,199.8,0.03806853]
[1738807746975,0.03809854,199.85,199.82,13.48401376]
[1738807747178,133.30416639,199.94,199.84,5.0037]
[1738807747179,5.0019,199.92,199.84,5.0037]
[1738807747676,5.0019,199.92,199.86,5.0032]
[1738807747875,5.0015,199.93,199.86,5.0032]
[1738807748076,137.14416639,200.0,199.85,13.48401376]
[1738807748276,137.14416639,200.0,199.88,0.03327783]
[1738807748277,0.03160877,199.91,199.88,0.03327783]
[1738807748472,137.14416639,200.0,199.86,2.944]
[1738807748776,0.03160877,199.91,199.88,0.03504893]
[1738807748978,137.14416639,200.0,199.88,0.03504893]
[1738807749176,0.03160877,199.91,199.86,2.944]
[1738807749478,5.0007,199.97,199.88,13.48401376]
[1738807749777,4.9992,200.02,199.96,5.0007]
[1738807749980,54.47281633,200.03,199.91,13.48401376]
[1738807750578,54.47281633,200.03,199.95,0.03490536]
[1738807750880,4.9995,200.01,199.95,5.03580536]
[1738807751882,13.48401376,200.09,199.96,1.5009]
[1738807752075,54.47281633,200.12,199.82,41.10026277]
[1738807752076,13.48401376,200.03,199.88,13.48401376]
[1738807752380,13.48401376,200.0,199.89,1.5471]
[1738807752779,13.48401376,200.0,199.85,17.30401376]
[1738807752780,13.48401376,200.0,199.85,13.48401376]
[1738807752976,13.48401376,199.97,199.84,5.0035]
[1738807753381,0.03494784,199.92,199.89,0.0321818]
[1738807753581,5.0019,199.91,199.89,0.0321818]
[1738807755277,0.03277547,199.92,199.89,0.0321818]
[1738807756080,5.002,199.91,199.89,0.0321818]
[1738807756584,0.03277547,199.92,199.77,6.91574911]
[1738807756780,5.0035,199.85,199.77,11.92114911]
[1738807757181,21.61978879,199.94,199.77,6.91574911]
[1738807757383,21.61978879,199.94,199.8,5.0045]
[1738807757579,21.61978879,199.94,199.77,6.91574911]
[1738807757882,0.03547707,199.89,199.85,0.03500874]
[1738807759883,5.03797707,199.89,199.85,0.03500874]
[1738807761187,5.0027,199.88,199.85,0.03500874]
[1738807761480,0.03547707,199.89,199.85,0.03500874]
[1738807761680,5.003,199.87,199.85,0.03500874]
[1738807761880,0.03547707,199.89,199.85,0.03500874]
[1738807762391,5.003,199.87,199.85,0.03500874]
[1738807764191,5.0032,199.86,199.85,0.03500874]
[1738807767296,5.0032,199.86,199.85,8.74e-06]
[1738807767495,21.61978879,199.87,199.7,49.2360378]
[1738807767695,21.61978879,199.87,199.7,27.61624901]
[1738807767696,0.343,199.86,199.7,27.61624901]
[1738807767896,21.61978879,199.83,199.7,32.62324901]
[1738807768196,21.61978879,199.83,199.7,27.61624901]
[1738807768601,0.03756925,199.78,199.75,0.03319227]
[1738807770304,5.0055,199.77,199.75,0.03319227]
[1738807772604,0.03756925,199.78,199.75,0.03319227]
[1738807773105,0.03756925,199.78,199.76,5.0056]
[1738807773302,0.03756925,199.78,199.75,0.03319227]
[1738807775303,5.0055,199.77,199.75,0.03319227]
[1738807776106,5.04276925,199.78,199.75,0.03319227]
[1738807777007,0.03756925,199.78,199.75,0.03319227]
[1738807777610,0.03756925,199.78,199.76,5.0056]
[1738807778709,0.03756925,199.78,199.75,0.03319227]
[1738807779406,0.03756925,199.78,199.75,5.03909227]
[1738807779911,5.0044,199.82,199.76,5.0057]
[1738807781106,0.03743137,199.81,199.76,5.0057]
[1738807783211,0.03743137,199.81,199.75,0.03319227]
[1738807783509,14.08416262,199.93,199.79,13.52806262]
[1738807783810,14.08416262,199.93,199.81,5.0044]
[1738807783811,5.003,199.87,199.81,5.0044]
[1738807784409,5.0033,199.86,199.81,5.0044]
[1738807784615,5.03158992,199.86,199.82,0.03696957]
[1738807784912,0.02828992,199.86,199.82,0.03696957]
[1738807785612,0.02828992,199.86,199.82,5.04096957]
[1738807785805,0.02828992,199.86,199.82,0.03696957]
[1738807786206,13.52806262,199.96,199.82,13.56503219]
[1738807786413,13.52806262,199.96,199.85,5.0035]
[1738807787215,5.002,199.91,199.85,5.0035]
[1738807787411,5.002,199.91,199.89,0.03297705]
[1738807791220,13.52806262,199.96,199.89,0.03297705]
[1738807791416,5.0017,199.93,199.89,0.03297705]
[1738807791625,13.52806262,199.99,199.89,0.03297705]
[1738807791820,5.0007,199.96,199.9,5.002]
[1738807794022,13.52806262,199.99,199.89,0.03297705]
[1738807794329,13.52806262,199.96,199.89,0.03297705]
[1738807794529,5.0016,199.93,199.82,15.03516262]
[1738807794728,5.0016,199.93,199.91,0.03548773]
[1738807794930,13.52806262,199.96,199.82,15.03516262]
[1738807795123,13.52806262,199.96,199.9,0.03438679]
[1738807796130,5.0019,199.91,199.9,0.03438679]
[1738807796528,5.0019,199.91,199.9,8.679e-05]
[1738807807829,5.0042,199.83,199.81,1.5612]
[1738807808234,13.52806262,199.89,199.81,1.5612]
[1738807809040,0.03438679,199.87,199.83,0.03290834]
[1738807809238,5.0037,199.84,199.83,0.03290834]
[1738807810044,2.5721,199.84,199.83,0.03290834]
[1738807810244,0.03438679,199.87,199.83,0.03290834]
[1738807810742,5.0037,199.84,199.83,0.03290834]
[1738807811341,5.0037,199.84,199.83,8.34e-06]
[1738807814241,133.34821525,199.86,199.71,1.5903]
[1738807814542,5.006,199.75,199.71,1.5903]
[1738807815135,5.0063,199.74,199.7,1.5459]
[1738807815442,0.03366367,199.74,199.7,1.58243076]
[1738807815642,5.0067,199.72,199.7,1.58243076]
[1738807816035,0.03366367,199.74,199.7,1.58243076]
[1738807816737,5.0067,199.72,199.7,1.58243076]
[1738807818544,0.03366367,199.74,199.7,1.58243076]
[1738807819941,0.03366367,199.74,199.7,0.03653076]
[1738807820849,5.0067,199.72,199.7,0.03653076]
[1738807821347,0.03366367,199.74,199.7,0.03653076]
[1738807822548,5.0051,199.79,199.73,5.0063]
[1738807822744,5.0051,199.79,199.69,13.52806262]
[1738807822745,17.28806262,199.84,199.69,13.52806262]
[1738807823145,5.0057,199.76,199.69,18.53536262]
[1738807823349,13.52806262,199.81,199.66,13.52806262]
[1738807823550,0.03363146,199.74,199.71,0.03535121]
[1738807823751,13.52806262,199.81,199.71,0.03535121]
[1738807823945,0.03363146,199.74,199.71,0.03535121]
[1738807824144,13.52806262,199.81,199.71,0.03535121]
[1738807824343,0.03363146,199.74,199.71,0.03535121]
[1738807824648,0.03160571,199.74,199.71,0.03535121]
[1738807825054,5.0066,199.73,199.71,0.03535121]
[1738807825856,13.52806262,199.84,199.71,0.03535121]
[1738807826054,13.52806262,199.84,199.72,13.52806262]
[1738807826560,5.0047,199.8,199.72,18.53456262]
[1738807827254,5.0047,199.8,199.74,0.03385877]
[1738807827860,5.0051,199.79,199.74,0.03385877]
[1738807828061,13.52806262,199.84,199.74,1.52755877]
[1738807828855,119.82015263,199.86,199.74,1.52755877]
[1738807829060,119.82015263,199.86,199.74,1.4937]
[1738807829259,119.82015263,199.86,199.78,0.03669248]
[1738807829460,5.004,199.83,199.78,0.03669248]
[1738807829765,13.52806262,199.87,199.78,0.03669248]
[1738807829959,5.004,199.83,199.78,0.03669248]
[1738807830160,13.52806262,199.87,199.78,0.03669248]
[1738807830761,13.52806262,199.84,199.78,0.03669248]
[1738807831157,17.28806262,199.9,199.78,0.03669248]
[1738807831158,13.52806262,199.81,199.78,0.03669248]
[1738807831364,5.0047,199.8,199.78,0.03669248]
[1738807832668,5.0047,199.8,199.78,9.248e-05]
[1738807838067,13.56180989,199.81,199.78,9.248e-05]
[1738807838268,5.005,199.79,199.78,9.248e-05]
[1738807842577,0.03374727,199.81,199.78,9.248e-05]
[1738807844274,5.0048,199.8,199.78,9.248e-05]
[1738807844574,0.03374727,199.81,199.78,9.248e-05]
[1738807846076,5.03824727,199.81,199.78,9.248e-05]
[1738807846271,0.03374727,199.81,199.78,9.248e-05]
[1738807848172,0.03374727,199.81,199.78,5.00529248]
[1738807848478,13.52806262,199.9,199.78,3.05469248]
[1738807848667,5.0031,199.87,199.78,3.0546]
[1738807848875,13.52806262,199.9,199.78,3.0546]
[1738807849378,13.52806262,199.9,199.82,0.03727363]
[1738807849574,5.0039,199.84,199.82,0.03727363]
[1738807851775,5.004,199.83,199.82,0.03727363]
[1738807852179,5.004,199.83,199.82,7.363e-05]
[1738807856180,0.03781083,199.84,199.82,7.363e-05]
[1738807856381,13.52806262,199.93,199.82,7.363e-05]
[1738807856883,13.52806262,199.93,199.82,1.57237363]
[1738807857081,5.0026,199.89,199.82,1.57237363]
[1738807857281,13.52806262,199.93,199.82,1.57237363]
[1738807857578,5.0031,199.87,199.82,1.57237363]
[1738807857785,13.52806262,199.93,199.82,1.57237363]
[1738807858381,5.0035,199.85,199.82,1.57237363]
[1738807859081,13.52806262,199.93,199.82,1.57237363]
[1738807859082,13.52806262,199.9,199.82,1.57237363]
[1738807859383,5.0037,199.84,199.82,1.5723]
[1738807860383,5.0035,199.85,199.82,1.5723]
[1738807860579,13.52806262,199.93,199.82,1.5723]
[1738807860773,119.82015263,199.95,199.82,1.5723]
[1738807860972,5.0025,199.89,199.86,0.03276036]
[1738807861374,119.82015263,199.95,199.86,0.03276036]
[1738807861575,5.0029,199.88,199.86,0.03276036]
[1738807861882,13.52806262,199.93,199.86,0.03276036]
[1738807862079,5.0029,199.87,199.86,0.03276036]
[1738807862979,5.0029,199.87,199.79,1.5653]
[1738807862980,13.52806262,199.87,199.79,1.5653]
[1738807863279,13.52806262,199.84,199.76,6.91574911]
[1738807863679,3.72,199.87,199.76,20.44381173]
[1738807863880,3.72,199.87,199.77,5.0052]
[1738807864182,13.52806262,199.83,199.8,0.03628659]
[1738807865076,5.0042,199.82,199.8,0.03628659]
[1738807865478,13.52806262,199.83,199.76,6.91574911]
[1738807865681,5.0055,199.77,199.76,6.91574911]
[1738807866076,5.0055,199.77,199.63,27.61624901]
[1738807866280,5.0058,199.76,199.63,27.61624901]
[1738807866480,5.0058,199.76,199.63,39.48874565]
[1738807866680,0.03441898,199.76,199.72,1.59721984]
[1738807867786,0.03441898,199.76,199.72,6.60381984]
[1738807867986,0.03441898,199.76,199.72,1.59721984]
[1738807868382,0.03441898,199.76,199.74,5.0061]
[1738807869785,5.0044,199.82,199.76,5.0057]
[1738807869985,119.82015263,199.89,199.76,13.52806262]
[1738807870184,17.24806262,199.92,199.76,13.52806262]
[1738807870486,5.0029,199.88,199.79,13.52806262]
[1738807870687,17.24806262,199.92,199.79,13.52806262]